[Event "GrandPrix_29.05"]
[Site "Chess.com"]
[Date "2020.05.29"]
[Round "6"]
[White "Tesla37"]
[Black "mishikomchedlishvili"]
[Result "1-0"]
[WhiteElo "2928"]
[BlackElo "2449"]
[TimeControl "600+2"]
[EndTime "11:59:40 PDT"]
[Termination "Tesla37 won by resignation"]

1. e4 {[%clk 0:10:01.9]} 1... d6 {[%clk 0:10:00.1]} 2. d4 {[%clk 0:10:02.4]}
2... Nf6 {[%clk 0:10:00.6]} 3. Nc3 {[%clk 0:10:03.9]} 3... g6 {[%clk 0:10:01.1]}
4. Be3 {[%clk 0:10:03.5]} 4... c6 {[%clk 0:10:00.8]} 5. h3 {[%clk 0:10:03.6]}
5... Nbd7 {[%clk 0:09:57.7]} 6. f4 {[%clk 0:10:02.5]} 6... e5 {[%clk 0:09:25.9]}
7. Nf3 {[%clk 0:09:39.3]} 7... Qa5 {[%clk 0:08:09.7]} 8. Bd3 {[%clk 0:08:45.5]}
8... Bh6 {[%clk 0:07:23.4]} 9. Qd2 {[%clk 0:08:01.1]} 9... Nh5 {[%clk
0:06:50.4]} 10. f5 {[%clk 0:06:30.4]} 10... Bxe3 {[%clk 0:06:50.7]} 11. Qxe3
{[%clk 0:06:31.1]} 11... Nhf6 {[%clk 0:06:15.5]} 12. O-O-O {[%clk 0:05:45.2]}
12... b5 {[%clk 0:06:09.7]} 13. dxe5 {[%clk 0:05:33.3]} 13... dxe5 {[%clk
0:06:06.8]} 14. Kb1 {[%clk 0:05:33.1]} 14... b4 {[%clk 0:05:34.2]} 15. Ne2
{[%clk 0:05:32.1]} 15... Qb6 {[%clk 0:05:19.9]} 16. Qh6 {[%clk 0:05:21.4]} 16...
Qc5 {[%clk 0:03:47.9]} 17. fxg6 {[%clk 0:05:00.1]} 17... fxg6 {[%clk 0:03:47.9]}
18. Ng5 {[%clk 0:04:59.8]} 18... Qf8 {[%clk 0:03:13.8]} 19. Qh4 {[%clk
0:04:58.9]} 19... Nb6 {[%clk 0:02:11.9]} 20. Rhf1 {[%clk 0:04:48]} 20... Qe7
{[%clk 0:02:00]} 21. Rf3 {[%clk 0:04:43.1]} 21... Bd7 {[%clk 0:01:14.3]} 22.
Rdf1 {[%clk 0:04:19.1]} 22... Rf8 {[%clk 0:01:15]} 23. Qf2 {[%clk 0:03:51.5]}
23... c5 {[%clk 0:00:36.6]} 24. Nc1 {[%clk 0:03:12.1]} 24... h6 {[%clk
0:00:25.1]} 25. Rxf6 {[%clk 0:03:11.4]} 25... Rxf6 {[%clk 0:00:26.3]} 26. Qxf6
{[%clk 0:03:12.4]} 26... Qxf6 {[%clk 0:00:27.7]} 27. Rxf6 {[%clk 0:03:13.6]}
27... hxg5 {[%clk 0:00:28.8]} 28. Rxg6 {[%clk 0:03:14.1]} 28... Ke7 {[%clk
0:00:22.8]} 29. Rxg5 {[%clk 0:03:14.3]} 29... Rf8 {[%clk 0:00:21.7]} 30. Rxe5+
{[%clk 0:03:11]} 30... Kd6 {[%clk 0:00:22.9]} 31. Rg5 {[%clk 0:03:09.3]} 31...
Rf2 {[%clk 0:00:22]} 32. b3 {[%clk 0:03:04.6]} 32... Be6 {[%clk 0:00:20.1]} 33.
Be2 {[%clk 0:02:51.6]} 33... c4 {[%clk 0:00:17.4]} 34. h4 {[%clk 0:02:49]} 34...
c3 {[%clk 0:00:11.6]} 35. h5 {[%clk 0:02:49.5]} 35... Ke7 {[%clk 0:00:08.5]} 36.
h6 {[%clk 0:02:47.8]} 36... Rf7 {[%clk 0:00:07.1]} 37. Rh5 {[%clk 0:02:46.1]}
1-0

[Event "GrandPrix_29.05"]
[Site "Chess.com"]
[Date "2020.05.29"]
[Round "6"]
[White "Thor736"]
[Black "hypert"]
[Result "1/2-1/2"]
[WhiteElo "2034"]
[BlackElo "2116"]
[TimeControl "600+2"]
[EndTime "11:59:43 PDT"]
[Termination "Game drawn by agreement"]

1. e4 {[%clk 0:10:00.9]} 1... c5 {[%clk 0:10:00.9]} 2. Nf3 {[%clk 0:10:01.5]}
2... Nc6 {[%clk 0:10:01.7]} 3. d4 {[%clk 0:10:01]} 3... cxd4 {[%clk 0:10:03.6]}
4. Nxd4 {[%clk 0:10:01.9]} 4... e5 {[%clk 0:10:05.2]} 5. Nb5 {[%clk 0:10:02.7]}
5... a6 {[%clk 0:10:06.5]} 6. Nd6+ {[%clk 0:10:02.4]} 6... Bxd6 {[%clk 0:10:08]}
7. Qxd6 {[%clk 0:10:03.2]} 7... Qf6 {[%clk 0:10:09.7]} 8. Qxf6 {[%clk
0:10:04.1]} 8... Nxf6 {[%clk 0:10:11.6]} 9. Nc3 {[%clk 0:10:05.4]} 9... Nb4
{[%clk 0:10:12.5]} 10. Bd3 {[%clk 0:10:05.5]} 10... h6 {[%clk 0:10:13.6]} 11.
Be3 {[%clk 0:09:37]} 11... d5 {[%clk 0:09:41]} 12. exd5 {[%clk 0:09:32.2]} 12...
Nbxd5 {[%clk 0:09:28.7]} 13. Nxd5 {[%clk 0:09:32.3]} 13... Nxd5 {[%clk
0:09:30.3]} 14. Bd2 {[%clk 0:09:16.4]} 14... Be6 {[%clk 0:09:05.4]} 15. O-O-O
{[%clk 0:09:15.8]} 15... f6 {[%clk 0:08:49.1]} 16. f4 {[%clk 0:05:46.3]} 16...
Nxf4 {[%clk 0:07:47.3]} 17. Bxf4 {[%clk 0:05:36.7]} 17... exf4 {[%clk
0:07:49.2]} 18. Be4 {[%clk 0:05:37.9]} 18... Rb8 {[%clk 0:07:27.1]} 19. Rd6
{[%clk 0:05:35.8]} 19... Kf7 {[%clk 0:06:55.5]} 20. Rb6 {[%clk 0:05:06.2]} 20...
f5 {[%clk 0:06:55.3]} 21. Bxb7 {[%clk 0:04:41.4]} 21... Rhe8 {[%clk 0:06:14.6]}
22. Re1 {[%clk 0:04:40]} 22... Re7 {[%clk 0:06:04]} 23. Rbxe6 {[%clk 0:04:31.8]}
23... Rexb7 {[%clk 0:05:29.2]} 24. b3 {[%clk 0:04:31.6]} 24... Rb6 {[%clk
0:05:27.3]} 25. Rxb6 {[%clk 0:04:19.4]} 25... Rxb6 {[%clk 0:05:29.2]} 26. c4
{[%clk 0:04:20.9]} 26... g5 {[%clk 0:05:25.2]} 27. Kc2 {[%clk 0:04:18.4]} 27...
Re6 {[%clk 0:03:46.8]} 28. Rxe6 {[%clk 0:04:18.1]} 28... Kxe6 {[%clk 0:03:48.7]}
29. b4 {[%clk 0:04:14.1]} 29... h5 {[%clk 0:03:25.1]} 30. Kd3 {[%clk 0:03:55.7]}
30... h4 {[%clk 0:02:34.2]} 31. Ke2 {[%clk 0:02:45.7]} 31... g4 {[%clk
0:02:31.8]} 32. Kf2 {[%clk 0:01:43.4]} 32... Kd6 {[%clk 0:02:20.1]} 33. a4
{[%clk 0:01:26.5]} 33... Kc6 {[%clk 0:02:20.8]} 34. b5+ {[%clk 0:00:37]} 34...
axb5 {[%clk 0:02:22.7]} 35. cxb5+ {[%clk 0:00:36.9]} 1/2-1/2

[Event "GrandPrix_29.05"]
[Site "Chess.com"]
[Date "2020.05.29"]
[Round "6"]
[White "am00ss00"]
[Black "cassoulet"]
[Result "0-1"]
[WhiteElo "2066"]
[BlackElo "2061"]
[TimeControl "600+2"]
[EndTime "11:59:45 PDT"]
[Termination "cassoulet won by resignation"]

1. e4 {[%clk 0:09:24.3]} 1... c5 {[%clk 0:09:47.7]} 2. Nc3 {[%clk 0:09:24.6]}
2... Nc6 {[%clk 0:09:48.7]} 3. g3 {[%clk 0:09:25.7]} 3... g6 {[%clk 0:09:49.9]}
4. Bg2 {[%clk 0:09:26.9]} 4... Bg7 {[%clk 0:09:51.6]} 5. d3 {[%clk 0:09:28.1]}
5... d6 {[%clk 0:09:53.3]} 6. f4 {[%clk 0:09:28.9]} 6... e6 {[%clk 0:09:53.3]}
7. Nf3 {[%clk 0:09:28.6]} 7... Nge7 {[%clk 0:09:54.8]} 8. O-O {[%clk 0:09:29.2]}
8... O-O {[%clk 0:09:56.4]} 9. Be3 {[%clk 0:09:30.1]} 9... b6 {[%clk 0:09:54.9]}
10. Qd2 {[%clk 0:09:30.2]} 10... d5 {[%clk 0:09:55.4]} 11. exd5 {[%clk
0:09:27.9]} 11... exd5 {[%clk 0:09:32.6]} 12. Bf2 {[%clk 0:09:03.2]} 12... Ba6
{[%clk 0:09:22.9]} 13. Rfe1 {[%clk 0:09:01.8]} 13... d4 {[%clk 0:09:17.2]} 14.
Ne4 {[%clk 0:08:53.4]} 14... Re8 {[%clk 0:09:18.2]} 15. Re2 {[%clk 0:08:39.2]}
15... h6 {[%clk 0:09:04.9]} 16. g4 {[%clk 0:08:17.9]} 16... Nd5 {[%clk
0:09:00.8]} 17. Rae1 {[%clk 0:08:11.2]} 17... Qc7 {[%clk 0:08:51.5]} 18. Ne5
{[%clk 0:07:48.6]} 18... Nxe5 {[%clk 0:08:43.8]} 19. fxe5 {[%clk 0:07:46.4]}
19... Bxe5 {[%clk 0:07:42.7]} 20. Qxh6 {[%clk 0:07:11.2]} 20... Bg7 {[%clk
0:07:36.1]} 21. Qg5 {[%clk 0:07:00.1]} 21... Bb7 {[%clk 0:07:33.1]} 22. Bg3
{[%clk 0:06:36.6]} 22... Qd7 {[%clk 0:07:02.2]} 23. Nd6 {[%clk 0:06:29.3]} 23...
Rxe2 {[%clk 0:07:02.1]} 24. Rxe2 {[%clk 0:06:28.5]} 24... Bf6 {[%clk 0:06:56.1]}
25. Qh6 {[%clk 0:05:25.6]} 25... Bc6 {[%clk 0:06:38.2]} 26. Rf2 {[%clk
0:05:02.5]} 26... Qe6 {[%clk 0:06:14]} 27. Be4 {[%clk 0:04:34.9]} 27... Bg7
{[%clk 0:05:45.8]} 28. Qg5 {[%clk 0:04:29.3]} 28... Rf8 {[%clk 0:05:43.5]} 29.
h4 {[%clk 0:03:45.3]} 29... Nb4 {[%clk 0:04:54.1]} 30. h5 {[%clk 0:03:23.7]}
30... Bxe4 {[%clk 0:04:43.4]} 31. Nxe4 {[%clk 0:03:24.1]} 31... f5 {[%clk
0:03:45.5]} 32. Nd6 {[%clk 0:01:48.4]} 32... f4 {[%clk 0:03:14.2]} 33. Rxf4
{[%clk 0:01:09.4]} 33... Qxd6 {[%clk 0:03:10.5]} 34. h6 {[%clk 0:00:56.5]} 34...
Rxf4 {[%clk 0:03:03]} 35. Bxf4 {[%clk 0:00:55.1]} 35... Qf6 {[%clk 0:02:54.8]}
36. hxg7 {[%clk 0:00:52.7]} 36... Qxg5 {[%clk 0:02:54.7]} 37. Bxg5 {[%clk
0:00:54.6]} 37... Nxc2 {[%clk 0:02:55.9]} 38. a3 {[%clk 0:00:54.7]} 38... Ne1
{[%clk 0:02:55.4]} 39. Bh6 {[%clk 0:00:50.1]} 39... Nxd3 {[%clk 0:02:54.7]} 40.
b3 {[%clk 0:00:51.6]} 40... Ne5 {[%clk 0:02:53.5]} 41. g5 {[%clk 0:00:50.3]}
41... b5 {[%clk 0:02:50.5]} 42. Kf2 {[%clk 0:00:51.3]} 42... c4 {[%clk
0:02:51.2]} 43. bxc4 {[%clk 0:00:52.5]} 43... bxc4 {[%clk 0:02:49.4]} 44. Ke2
{[%clk 0:00:53.9]} 44... Kf7 {[%clk 0:02:49.3]} 45. Kd2 {[%clk 0:00:54.4]} 45...
Nd7 {[%clk 0:02:44.9]} 46. a4 {[%clk 0:00:54.5]} 46... a5 {[%clk 0:02:45.5]} 47.
Ke2 {[%clk 0:00:55.4]} 47... Nc5 {[%clk 0:02:46.7]} 48. Kf3 {[%clk 0:00:55.7]}
48... c3 {[%clk 0:02:46.5]} 49. Ke2 {[%clk 0:00:56.1]} 49... d3+ {[%clk
0:02:47.4]} 50. Ke3 {[%clk 0:00:56.8]} 50... c2 {[%clk 0:02:46.2]} 51. Kd2
{[%clk 0:00:58]} 51... Nb3+ {[%clk 0:02:47.2]} 0-1

[Event "GrandPrix_29.05"]
[Site "Chess.com"]
[Date "2020.05.29"]
[Round "6"]
[White "woodhy"]
[Black "Sporty207"]
[Result "0-1"]
[WhiteElo "2045"]
[BlackElo "2228"]
[TimeControl "600+2"]
[EndTime "11:59:53 PDT"]
[Termination "Sporty207 won by checkmate"]

1. e4 {[%clk 0:10:01.9]} 1... e6 {[%clk 0:09:57.6]} 2. d4 {[%clk 0:10:01.1]}
2... d5 {[%clk 0:09:58.3]} 3. e5 {[%clk 0:10:02.4]} 3... c5 {[%clk 0:09:48.3]}
4. c3 {[%clk 0:10:03.2]} 4... Nc6 {[%clk 0:09:49.2]} 5. Be3 {[%clk 0:09:50.4]}
5... Qb6 {[%clk 0:09:48.8]} 6. Qd2 {[%clk 0:09:49.9]} 6... cxd4 {[%clk
0:09:40.7]} 7. cxd4 {[%clk 0:09:51.8]} 7... Bb4 {[%clk 0:09:41.4]} 8. Nc3 {[%clk
0:09:50.8]} 8... Nh6 {[%clk 0:09:30.8]} 9. Bd3 {[%clk 0:09:40.4]} 9... Bd7
{[%clk 0:08:46.6]} 10. Nf3 {[%clk 0:09:35.5]} 10... Ng4 {[%clk 0:08:38.4]} 11.
O-O {[%clk 0:09:33.4]} 11... Nxe3 {[%clk 0:08:19.1]} 12. fxe3 {[%clk 0:09:35.3]}
12... Be7 {[%clk 0:08:19]} 13. Rac1 {[%clk 0:09:09.1]} 13... Rc8 {[%clk
0:08:15.6]} 14. Na4 {[%clk 0:08:45.2]} 14... Qb4 {[%clk 0:07:52.8]} 15. Nc3
{[%clk 0:07:15.3]} 15... Qb6 {[%clk 0:07:30]} 16. a3 {[%clk 0:06:24.9]} 16...
O-O {[%clk 0:07:14.3]} 17. b4 {[%clk 0:06:06.1]} 17... Qd8 {[%clk 0:06:53.7]}
18. e4 {[%clk 0:05:34.2]} 18... dxe4 {[%clk 0:06:05.3]} 19. Nxe4 {[%clk
0:05:36.1]} 19... a6 {[%clk 0:06:04.9]} 20. Qe3 {[%clk 0:03:35.7]} 20... Na7
{[%clk 0:05:39.8]} 21. Neg5 {[%clk 0:02:56.3]} 21... h6 {[%clk 0:05:01.5]} 22.
Rxc8 {[%clk 0:01:37.3]} 22... Nxc8 {[%clk 0:05:00.9]} 23. Qe4 {[%clk 0:01:09.3]}
23... g6 {[%clk 0:04:53.7]} 24. Nxf7 {[%clk 0:01:05.2]} 24... Rxf7 {[%clk
0:04:51.4]} 25. Qxg6+ {[%clk 0:01:06.4]} 25... Rg7 {[%clk 0:04:33.6]} 26. Qxh6
{[%clk 0:01:06]} 26... Qf8 {[%clk 0:04:24.5]} 27. Nh4 {[%clk 0:00:33]} 27...
Rxg2+ {[%clk 0:04:05.1]} 28. Nxg2 {[%clk 0:00:14]} 28... Qxh6 {[%clk 0:04:05.4]}
29. Rf3 {[%clk 0:00:14.3]} 29... Bc6 {[%clk 0:02:54.4]} 30. Rg3+ {[%clk
0:00:12.6]} 30... Kf8 {[%clk 0:02:54.4]} 31. Ne3 {[%clk 0:00:11.4]} 31... Nb6
{[%clk 0:02:41.4]} 32. Ng4 {[%clk 0:00:10.3]} 32... Qc1+ {[%clk 0:02:40.6]} 33.
Kf2 {[%clk 0:00:10.5]} 33... Qd2+ {[%clk 0:02:26.9]} 34. Kf1 {[%clk 0:00:09.7]}
34... Bh4 {[%clk 0:02:16.8]} 35. Rh3 {[%clk 0:00:08.6]} 35... Qe1# {[%clk
0:02:16.6]} 0-1

[Event "GrandPrix_29.05"]
[Site "Chess.com"]
[Date "2020.05.29"]
[Round "6"]
[White "ZefirKa"]
[Black "lelajavakhishvili"]
[Result "0-1"]
[WhiteElo "2082"]
[BlackElo "2106"]
[TimeControl "600+2"]
[EndTime "11:59:56 PDT"]
[Termination "lelajavakhishvili won on time"]

1. e4 {[%clk 0:10:01.9]} 1... d6 {[%clk 0:09:57.9]} 2. d4 {[%clk 0:10:02.5]}
2... Nf6 {[%clk 0:09:58.6]} 3. Nc3 {[%clk 0:10:03.3]} 3... g6 {[%clk 0:09:59.8]}
4. f4 {[%clk 0:10:04.2]} 4... Bg7 {[%clk 0:09:57.8]} 5. Nf3 {[%clk 0:10:05.2]}
5... Nc6 {[%clk 0:09:58.4]} 6. Be3 {[%clk 0:10:00.2]} 6... O-O {[%clk
0:09:20.8]} 7. Qd2 {[%clk 0:10:00.7]} 7... Bg4 {[%clk 0:08:51.7]} 8. d5 {[%clk
0:09:03.9]} 8... Bxf3 {[%clk 0:08:34.9]} 9. gxf3 {[%clk 0:09:04.4]} 9... Nb8
{[%clk 0:08:36]} 10. f5 {[%clk 0:07:57.9]} 10... c6 {[%clk 0:08:16.3]} 11. fxg6
{[%clk 0:07:25.8]} 11... fxg6 {[%clk 0:08:10.5]} 12. Bh3 {[%clk 0:07:24.7]}
12... Nbd7 {[%clk 0:07:58]} 13. f4 {[%clk 0:06:24.4]} 13... cxd5 {[%clk
0:07:36.1]} 14. exd5 {[%clk 0:06:24.8]} 14... Rc8 {[%clk 0:07:36.2]} 15. Bd4
{[%clk 0:06:05.9]} 15... Rc4 {[%clk 0:07:34.2]} 16. O-O-O {[%clk 0:05:48.3]}
16... Nc5 {[%clk 0:07:05.1]} 17. Bxc5 {[%clk 0:05:32.9]} 17... Rxc5 {[%clk
0:06:58.6]} 18. Be6+ {[%clk 0:05:26.5]} 18... Kh8 {[%clk 0:06:57.6]} 19. Rde1
{[%clk 0:03:59.2]} 19... Qa5 {[%clk 0:06:42.1]} 20. a3 {[%clk 0:03:22.5]} 20...
Nh5 {[%clk 0:05:22.5]} 21. Ne4 {[%clk 0:03:05.2]} 21... Qxd2+ {[%clk 0:05:19.5]}
22. Kxd2 {[%clk 0:03:06.3]} 22... Rc7 {[%clk 0:05:04.9]} 23. Ng5 {[%clk
0:01:49]} 23... h6 {[%clk 0:05:00.3]} 24. Nf7+ {[%clk 0:01:31.9]} 24... Kh7
{[%clk 0:05:00.2]} 25. f5 {[%clk 0:01:32.1]} 25... g5 {[%clk 0:04:40.8]} 26. c3
{[%clk 0:01:27.2]} 26... Bf6 {[%clk 0:04:25.8]} 27. h4 {[%clk 0:00:35.9]} 27...
gxh4 {[%clk 0:04:20.7]} 28. Rhg1 {[%clk 0:00:33.6]} 28... Ng3 {[%clk 0:04:16.9]}
29. Kd3 {[%clk 0:00:25.9]} 29... Kg7 {[%clk 0:04:07.1]} 30. Re3 {[%clk
0:00:02.3]} 30... Rxf7 {[%clk 0:04:03]} 31. Bxf7 {[%clk 0:00:04.2]} 31... Kxf7
{[%clk 0:04:04.1]} 32. Rf3 {[%clk 0:00:05.6]} 32... Rc5 {[%clk 0:03:58.6]} 33.
c4 {[%clk 0:00:04.2]} 33... b5 {[%clk 0:03:26]} 34. b3 {[%clk 0:00:05.1]} 34...
bxc4+ {[%clk 0:03:27]} 35. bxc4 {[%clk 0:00:07]} 35... Ra5 {[%clk 0:03:28.4]}
36. Kc2 {[%clk 0:00:05.6]} 36... Rc5 {[%clk 0:03:23.5]} 37. Kb3 {[%clk
0:00:05.8]} 37... Rc8 {[%clk 0:03:24.2]} 38. Kb4 {[%clk 0:00:05.9]} 38... Rb8+
{[%clk 0:03:06.6]} 39. Ka5 {[%clk 0:00:07.1]} 39... Ne4 {[%clk 0:03:02.2]} 40.
Rg6 {[%clk 0:00:03.4]} 40... Bg5 {[%clk 0:02:46.3]} 0-1

[Event "GrandPrix_29.05"]
[Site "Chess.com"]
[Date "2020.05.29"]
[Round "6"]
[White "pheonixking2000"]
[Black "Sam_ChessMood"]
[Result "0-1"]
[WhiteElo "2527"]
[BlackElo "2604"]
[TimeControl "600+2"]
[EndTime "12:00:00 PDT"]
[Termination "Sam_ChessMood won by resignation"]

1. c4 {[%clk 0:10:01.9]} 1... e5 {[%clk 0:09:59.3]} 2. g3 {[%clk 0:10:03]} 2...
Nf6 {[%clk 0:09:48.9]} 3. Bg2 {[%clk 0:10:04]} 3... c6 {[%clk 0:09:50.2]} 4. Nf3
{[%clk 0:10:04.1]} 4... e4 {[%clk 0:09:50.8]} 5. Nd4 {[%clk 0:10:05.3]} 5... Qb6
{[%clk 0:09:51.4]} 6. Nb3 {[%clk 0:09:49.4]} 6... a5 {[%clk 0:09:51.6]} 7. d3
{[%clk 0:09:43.9]} 7... a4 {[%clk 0:09:22.7]} 8. N3d2 {[%clk 0:09:44.6]} 8...
Bc5 {[%clk 0:09:06.9]} 9. e3 {[%clk 0:08:09.6]} 9... exd3 {[%clk 0:09:01.4]} 10.
O-O {[%clk 0:08:05.3]} 10... O-O {[%clk 0:08:44.2]} 11. Nc3 {[%clk 0:08:05.3]}
11... Qa6 {[%clk 0:07:27.9]} 12. b3 {[%clk 0:07:50.3]} 12... a3 {[%clk 0:06:23]}
13. Nf3 {[%clk 0:06:08.6]} 13... d5 {[%clk 0:06:09.1]} 14. cxd5 {[%clk
0:06:09.8]} 14... cxd5 {[%clk 0:06:09]} 15. Ne5 {[%clk 0:06:02.7]} 15... Bf5
{[%clk 0:05:56.7]} 16. g4 {[%clk 0:04:47.5]} 16... Nbd7 {[%clk 0:05:24]} 17.
Nxd7 {[%clk 0:04:26.9]} 17... Bxd7 {[%clk 0:05:24.8]} 18. g5 {[%clk 0:04:28.5]}
18... Bb4 {[%clk 0:04:11.8]} 19. Bd2 {[%clk 0:03:04.3]} 19... Bxc3 {[%clk
0:04:10.2]} 20. Bxc3 {[%clk 0:03:06.2]} 20... Ne4 {[%clk 0:04:11.5]} 21. Rc1
{[%clk 0:02:52.9]} 21... Rac8 {[%clk 0:03:57.5]} 22. Bb4 {[%clk 0:02:50.5]}
22... Rxc1 {[%clk 0:03:38]} 23. Qxc1 {[%clk 0:02:49.6]} 23... Rc8 {[%clk
0:03:38.8]} 24. Qxa3 {[%clk 0:02:44.2]} 24... Qxa3 {[%clk 0:03:13.8]} 25. Bxa3
{[%clk 0:02:46.1]} 25... Ra8 {[%clk 0:03:14.2]} 26. Be7 {[%clk 0:01:47]} 26...
Rxa2 {[%clk 0:03:09.9]} 27. f3 {[%clk 0:01:48.4]} 27... Nc3 {[%clk 0:02:25.1]}
28. Bb4 {[%clk 0:01:48.7]} 28... d4 {[%clk 0:02:16.4]} 29. exd4 {[%clk
0:00:56.9]} 29... Ne2+ {[%clk 0:02:17.3]} 30. Kh1 {[%clk 0:00:58.5]} 30... Nf4
{[%clk 0:02:18.4]} 31. Rd1 {[%clk 0:00:16.6]} 31... Nxg2 {[%clk 0:01:49.7]} 0-1

[Event "GrandPrix_29.05"]
[Site "Chess.com"]
[Date "2020.05.29"]
[Round "6"]
[White "DaggiGretarsson"]
[Black "Promacherr"]
[Result "0-1"]
[WhiteElo "2035"]
[BlackElo "2186"]
[TimeControl "600+2"]
[EndTime "12:00:03 PDT"]
[Termination "Promacherr won by resignation"]

1. d4 {[%clk 0:09:59.9]} 1... d5 {[%clk 0:09:59.7]} 2. c4 {[%clk 0:10:00]} 2...
c6 {[%clk 0:10:01]} 3. Nc3 {[%clk 0:10:00.5]} 3... Nf6 {[%clk 0:10:01.3]} 4. e3
{[%clk 0:10:00.2]} 4... g6 {[%clk 0:09:54.3]} 5. Nf3 {[%clk 0:09:57.4]} 5... Bg7
{[%clk 0:09:55.3]} 6. Be2 {[%clk 0:09:54.9]} 6... O-O {[%clk 0:09:56.6]} 7. O-O
{[%clk 0:09:55.2]} 7... Bg4 {[%clk 0:09:57.2]} 8. cxd5 {[%clk 0:09:33.6]} 8...
cxd5 {[%clk 0:09:55.7]} 9. Qb3 {[%clk 0:09:34.4]} 9... Bc8 {[%clk 0:09:17.9]}
10. Bd2 {[%clk 0:09:20.8]} 10... Nc6 {[%clk 0:09:17.2]} 11. Rfc1 {[%clk
0:09:21.7]} 11... e6 {[%clk 0:09:15.5]} 12. Na4 {[%clk 0:07:51]} 12... Nd7
{[%clk 0:09:01]} 13. Bb5 {[%clk 0:07:46]} 13... Ncb8 {[%clk 0:08:53.5]} 14. Bb4
{[%clk 0:07:36.7]} 14... Re8 {[%clk 0:08:52.8]} 15. Bd6 {[%clk 0:07:37.5]} 15...
a6 {[%clk 0:08:52]} 16. Bc7 {[%clk 0:06:39.2]} 16... Qe7 {[%clk 0:08:51.1]} 17.
Bxd7 {[%clk 0:06:10.5]} 17... Nxd7 {[%clk 0:08:53]} 18. Nb6 {[%clk 0:06:10.6]}
18... Nxb6 {[%clk 0:08:49.1]} 19. Qxb6 {[%clk 0:06:10.6]} 19... Bf8 {[%clk
0:08:46.7]} 20. Rc5 {[%clk 0:05:12.8]} 20... f6 {[%clk 0:07:59.5]} 21. Rac1
{[%clk 0:04:50.6]} 21... Qd7 {[%clk 0:07:53.5]} 22. Ra5 {[%clk 0:04:50.8]} 22...
Qe7 {[%clk 0:07:43]} 23. a3 {[%clk 0:04:45.1]} 23... Bd7 {[%clk 0:07:34.2]} 24.
Qxb7 {[%clk 0:04:42.7]} 24... Bb5 {[%clk 0:07:31.6]} 25. Qb6 {[%clk 0:04:19.4]}
25... Rec8 {[%clk 0:07:28.6]} 26. Rc3 {[%clk 0:03:59.8]} 26... Qd7 {[%clk
0:07:09]} 27. h3 {[%clk 0:03:30.6]} 27... h5 {[%clk 0:07:04.5]} 28. Ne1 {[%clk
0:02:57.8]} 28... g5 {[%clk 0:06:41.2]} 29. Nc2 {[%clk 0:02:57.4]} 29... Re8
{[%clk 0:06:11.1]} 30. b3 {[%clk 0:02:49.5]} 30... Rac8 {[%clk 0:06:06.4]} 31.
a4 {[%clk 0:02:48.6]} 31... Be2 {[%clk 0:06:05.6]} 32. f3 {[%clk 0:01:46.1]}
32... Re7 {[%clk 0:06:04.3]} 33. Rac5 {[%clk 0:01:46]} 33... Ree8 {[%clk
0:05:43.7]} 34. Rc6 {[%clk 0:01:45.1]} 34... g4 {[%clk 0:05:28.6]} 35. Kf2
{[%clk 0:01:38.6]} 35... gxf3 {[%clk 0:05:25.6]} 36. gxf3 {[%clk 0:01:38.9]}
36... Bd1 {[%clk 0:05:26.5]} 37. Bg3 {[%clk 0:01:19.7]} 37... h4 {[%clk
0:04:49.2]} 38. Bxh4 {[%clk 0:01:16.3]} 38... Rb8 {[%clk 0:04:35.9]} 39. Qxa6
{[%clk 0:01:05.1]} 39... Qh7 {[%clk 0:04:31.9]} 40. Bxf6 {[%clk 0:00:55.5]}
40... Qxh3 {[%clk 0:04:09.4]} 41. Qf1 {[%clk 0:00:36.4]} 41... Qxf3+ {[%clk
0:03:41.5]} 42. Ke1 {[%clk 0:00:34.2]} 42... Qg4 {[%clk 0:03:28.5]} 43. Rc7
{[%clk 0:00:18.9]} 43... Bxc2 {[%clk 0:02:50.1]} 44. Qh1 {[%clk 0:00:09.5]}
44... Qd1+ {[%clk 0:02:48.5]} 0-1

[Event "GrandPrix_29.05"]
[Site "Chess.com"]
[Date "2020.05.29"]
[Round "6"]
[White "Petriashvili02"]
[Black "Zubrrr"]
[Result "0-1"]
[WhiteElo "2238"]
[BlackElo "2581"]
[TimeControl "600+2"]
[EndTime "12:00:14 PDT"]
[Termination "Zubrrr won by checkmate"]

1. c4 {[%clk 0:09:59.7]} 1... f5 {[%clk 0:09:59.5]} 2. Nc3 {[%clk 0:10:00]} 2...
Nf6 {[%clk 0:09:59.6]} 3. g3 {[%clk 0:09:56.5]} 3... g6 {[%clk 0:10:00.7]} 4.
Bg2 {[%clk 0:09:57.4]} 4... Bg7 {[%clk 0:10:02.3]} 5. Nf3 {[%clk 0:09:56.5]}
5... O-O {[%clk 0:10:03.1]} 6. d4 {[%clk 0:09:57.8]} 6... d6 {[%clk 0:10:04.2]}
7. O-O {[%clk 0:09:58.9]} 7... Qe8 {[%clk 0:10:05.7]} 8. d5 {[%clk 0:09:59.2]}
8... a5 {[%clk 0:10:06.4]} 9. Nd4 {[%clk 0:09:59.2]} 9... Na6 {[%clk 0:10:07.3]}
10. b3 {[%clk 0:10:00.5]} 10... Bd7 {[%clk 0:10:02.5]} 11. Bb2 {[%clk
0:09:57.3]} 11... Nc5 {[%clk 0:09:46.6]} 12. Re1 {[%clk 0:09:53.8]} 12... Qf7
{[%clk 0:08:34.6]} 13. Qc2 {[%clk 0:09:43.7]} 13... f4 {[%clk 0:06:16.6]} 14.
Nf3 {[%clk 0:08:57]} 14... Ng4 {[%clk 0:04:07.3]} 15. Rad1 {[%clk 0:08:17.2]}
15... fxg3 {[%clk 0:03:07.3]} 16. hxg3 {[%clk 0:08:19.1]} 16... g5 {[%clk
0:03:04.2]} 17. Rf1 {[%clk 0:07:22.5]} 17... Qh5 {[%clk 0:03:00.4]} 18. Rfe1
{[%clk 0:07:22]} 18... Rf7 {[%clk 0:02:34]} 19. a3 {[%clk 0:06:08.4]} 19... Bf5
{[%clk 0:01:55.1]} 20. e4 {[%clk 0:05:50.4]} 20... Bg6 {[%clk 0:01:55.8]} 21. b4
{[%clk 0:05:33.8]} 21... axb4 {[%clk 0:01:29.7]} 22. axb4 {[%clk 0:05:34.8]}
22... Na6 {[%clk 0:01:30.1]} 23. Qd2 {[%clk 0:04:32.3]} 23... Raf8 {[%clk
0:01:00.6]} 24. Qe2 {[%clk 0:03:16.1]} 24... Nxb4 {[%clk 0:00:53.3]} 25. e5
{[%clk 0:02:25.5]} 25... Rxf3 {[%clk 0:00:28.4]} 26. Bxf3 {[%clk 0:02:26.5]}
26... Qh2+ {[%clk 0:00:29.8]} 27. Kf1 {[%clk 0:02:27.8]} 27... Nxe5 {[%clk
0:00:31.1]} 28. Bg2 {[%clk 0:02:22.4]} 28... Nbd3 {[%clk 0:00:22.1]} 29. Ne4
{[%clk 0:02:10.2]} 29... Bxe4 {[%clk 0:00:21.8]} 30. f4 {[%clk 0:01:44.8]} 30...
gxf4 {[%clk 0:00:18.7]} 31. Qxe4 {[%clk 0:01:44.2]} 31... fxg3+ {[%clk
0:00:17.8]} 32. Ke2 {[%clk 0:01:45.6]} 32... Rf2+ {[%clk 0:00:16.9]} 33. Ke3
{[%clk 0:01:47.2]} 33... Qh6+ {[%clk 0:00:16.2]} 34. Kd4 {[%clk 0:01:48.2]}
34... Nc6+ {[%clk 0:00:16.3]} 35. Kxd3 {[%clk 0:01:49]} 35... Nb4# {[%clk
0:00:17.6]} 0-1